Cogmind - Beta 11.1 @@@ ROGUE MODE // 2022.08.01 @ 18:03:17 Player: Hugon2010 Result: Destroyed by L-31 Rogue with Katana Performance ------------- Evolutions (1) 500 Regions Visited (3) 600 Robots Destroyed (20) 100 Value Destroyed (535) 535 Prototype IDs (2) 40 Alien Tech Used (0) 0 Bonus (0) 0 TOTAL SCORE: 1775 Bonus ------- None Cogmind --------- Core Integrity 0/400 Matter 300/300 Energy 97/100 System Corruption 0% Temperature Cool (6) Movement Core (50) Location -9/Storage Parts ------- > --- POWER (1) -------- (None) > --- PROPULSION (3) --- (None) > --- UTILITY (3) ------ Improved Targeting Computer > --- WEAPON (2) ------- (None) > --- INVENTORY (5) ---- Reactive Plating Peak State ------------ > --- POWER ------------ Improved Ion Engine > --- PROPULSION ------- Aluminum Leg Aluminum Leg Aluminum Leg > --- UTILITY ---------- Heat Sink Heat Sink Propulsion Shielding > --- WEAPON ----------- EM Pulse Cannon EM Pulse Cannon > --- INVENTORY -------- Improved Ion Engine Improved Targeting Computer Propulsion Shielding Reactive Plating Autogun [Rating: 15] Favorites ----------- Power Light Ion Engine Engine Light Ion Engine Propulsion Aluminum Leg Leg Aluminum Leg Utility Heat Sink Device Heat Sink Processor Improved Targeting Computer Protection Propulsion Shielding Weapon EM Pulse Gun Energy Gun EM Pulse Gun Energy Cannon EM Pulse Cannon Ballistic Gun Assault Rifle Build | -11 -10 -9 -9 ------- Run | Scr Mat Mat Sto Slots Evolved 2 | . . 2 . Power . | . . . . Propulsion 1 | . . 1 . Utility 1 | . . 1 . Weapon . | . . . . Parts Attached 23 | 5 2 12 4 Power 3 | 1 . 1 1 Engine 3 | 1 . 1 1 Core . | . . . . Reactor . | . . . . Propulsion 5 | 2 . 3 . Treads . | . . . . Leg 5 | 2 . 3 . Wheel . | . . . . Hover . | . . . . Flight . | . . . . Utility 6 | . 2 3 1 Device 2 | . 1 1 . Storage . | . . . . Processor 1 | . . . 1 Hackware . | . . . . Protection 3 | . 1 2 . Artifact . | . . . . Weapon 9 | 2 . 5 2 Energy Gun 1 | 1 . . . Energy Cannon 3 | . . 2 1 Ballistic Gun 5 | 1 . 3 1 Ballistic Cannon . | . . . . Launcher . | . . . . Special Weapon . | . . . . Impact Weapon . | . . . . Slashing Weapon . | . . . . Piercing Weapon . | . . . . Special Melee Weapon . | . . . . Unidentified Prototypes . | . . . . Parts Lost 10 | . . 1 9 Power 1 | . . . 1 Propulsion 3 | . . . 3 Utility 4 | . . 1 3 Weapon 2 | . . . 2 Highest Loss Streak 9 | . . 1 9 To Critical Strikes . | . . . . Average Slot Usage (%) 96 | . 97 99 79 Engine 11 | . 14 11 8 Leg 30 | . 28 33 25 Device 18 | . 12 22 17 Protection 11 | . 12 10 8 Energy Gun 7 | . 14 5 . Energy Cannon 5 | . . 5 15 Ballistic Gun 10 | . 14 10 1 Naked Turns . | . . . . Heaviest Build 22 | 7 9 22 22 Greatest Support 30 | 20 20 30 30 Greatest Overweight (x) 2 | . . . 2 Average Overweight (x) . | . . . . Largest Inventory Capacity 5 | 5 5 5 5 Average Capacity 5 | 5 5 5 5 Most Carried 5 | 3 5 5 4 Average Carried 3 | . 4 3 3 Final Capacity 5 | 5 5 5 5 Final Carried 5 | 3 5 4 1 Class Distribution -------------------- 94% | Mutant 5% | Scavenger-Mutant Dominant Class ---------------- Mutant | -10/Materials Mutant | -9/Materials Mutant | -9/Storage Resources | -11 -10 -9 -9 ----------- Run | Scr Mat Mat Sto Matter Collected 470 | 253 23 188 6 Remotely . | . . . . Salvage Created 704 | 35 181 425 63 Parts 50 | 2 16 30 2 Haulers Intercepted . | . . . . Recyclers Shooed . | . . . . Parts Field Recycled . | . . . . Retrieved Matter . | . . . . Parts Self-Destructed . | . . . . Prevented . | . . . . Kills | -11 -10 -9 -9 ------- Run | Scr Mat Mat Sto Combat Hostiles Destroyed 17 | 1 3 11 2 Guns 8 | 1 3 4 . Cannons 6 | . . 4 2 AOE 3 | . . 3 . Classes Destroyed 5 | 1 1 3 . Worker 2 | . . 1 1 Watcher 1 | . 1 . . Swarmer 5 | . . 3 2 Grunt 9 | 1 3 5 . Sentry 3 | . . 3 . Best Kill Streak 3 | 1 2 3 1 Combat Bots Only 3 | 1 2 3 1 Max Kills in Single Turn 2 | 1 1 2 1 Gunslinging . | . . . . Exploded 2 | . . 2 . Melee . | . . . . Uniques/NPCs Destroyed . | . . . . Combat | -11 -10 -9 -9 -------- Run | Scr Mat Mat Sto Damage Taken 1506 | . 204 347 955 Core 453 | . 48 35 370 Absorbed by Shields . | . . . . Redirected to Shielding 104 | . 26 31 47 Core Remaining (%) 90 | 100 80 . . Volleys Fired 44 | 1 12 22 9 Largest 2 | 2 2 2 2 Hottest 126 | 60 60 126 126 Shots Fired 85 | 2 24 44 15 Gun 58 | 2 24 28 4 Cannon 27 | . . 16 11 Launcher . | . . . . Special . | . . . . Kinetic 34 | 1 12 17 4 Thermal . | . . . . Explosive . | . . . . Electromagnetic 51 | 1 12 27 11 Robot Hit Streak 9 | 2 9 8 3 Robot Miss Streak 2 | . 2 2 2 Penetration Max . | . . . . Secondary Targets 1 | . 1 . . Max Gunslinging Chain 1 | . 1 . . Shots Hit Robots 53 | 2 17 29 5 Core Hits 31 | 2 8 17 4 Critical Kills . | . . . . Critical Parts Destroyed . | . . . . Critical Strikes 2 | . . 2 . Corrupt 2 | . . 2 . Melee Attacks . | . . . . Impact . | . . . . Slashing . | . . . . Piercing . | . . . . Sneak Attacks . | . . . . Combat Hostiles . | . . . . Follow-up Attacks . | . . . . Damage Inflicted 1066 | 28 284 574 180 Guns 500 | 28 253 189 30 Cannons 360 | . . 229 131 Explosions 163 | . 20 143 . Melee . | . . . . Ramming 43 | . 11 13 19 Kinetic 258 | 15 104 109 30 Thermal 163 | . 20 143 . Explosive . | . . . . Electromagnetic 602 | 13 149 309 131 Impact . | . . . . Slashing . | . . . . Piercing . | . . . . Highest Corruption . | . . . . Average Corruption . | . . . . Corruption Purged . | . . . . Corruption Blocked . | . . . . Overload Shots . | . . . . Overflow Damage 23 | . . 21 2 Projectiles 2 | . . . 2 Explosions 21 | . . 21 . Melee . | . . . . Knockbacks 1 | . . . 1 Impact 1 | . . . 1 Kinetic . | . . . . Secondary . | . . . . Self-Inflicted Damage 47 | . . 39 8 Shots 1 | . . 1 . Rammed 4 | . . . 4 Targets Rammed 10 | . 3 3 4 Kicked 6 | . 3 3 . Crushed . | . . . . Highest Temperature 18 | . . 18 14 Average Temperature 11 | . . 12 7 Received Heat Transfer 387 | . 117 117 153 Siege Activations . | . . . . Robots Corrupted . | . . . . Combat Hostiles . | . . . . Parts Fried 1 | . . . 1 Impact Corruptions . | . . . . Robots Melted . | . . . . Combat Hostiles . | . . . . Parts Melted . | . . . . Heat Transferred 350 | . 50 300 . Parts Sabotaged . | . . . . Parts Stolen . | . . . . Parts Stripped . | . . . . Power Chain Reactions 3 | . 1 2 . Missiles Intercepted . | . . . . Alert | -11 -10 -9 -9 ------- Run | Scr Mat Mat Sto Peak Influence 214 | 20 130 214 136 Initial 81 | . 13 54 81 Average 79 | 5 40 110 86 Maximum Alert Level 1 | . . 1 . Low Security (%) 94 | 100 100 90 100 Level 1 5 | . . 9 . Level 2 . | . . . . Level 3 . | . . . . Level 4 . | . . . . Level 5 . | . . . . High Security . | . . . . Max Security . | . . . . Squads Dispatched 5 | . 1 4 . Investigation 2 | . . 2 . Extermination . | . . . . Reinforcement 3 | . 1 2 . Assault . | . . . . Garrison . | . . . . Intercept . | . . . . Searches Triggered . | . . . . Construction Impeded . | . . . . Haulers Reinforced . | . . . . Active Scanning Responses . | . . . . Cargo Convoy Interrupts . | . . . . Stealth | -11 -10 -9 -9 --------- Run | Scr Mat Mat Sto Distress Signals 3 | . 1 2 . Communications Jammed . | . . . . Distress Signals . | . . . . Times Spotted 27 | 1 6 11 9 Peak Tracking Total 6 | 1 4 3 6 Tactical Retreats 1 | . . . 1 Traps | -11 -10 -9 -9 ------- Run | Scr Mat Mat Sto Traps Triggered 1 | . . 1 . Indirectly . | . . . . Trap Hack Attempts . | . . . . Triggered . | . . . . Disarmed . | . . . . Reprogrammed . | . . . . Reused . | . . . . Traps Extracted . | . . . . Installed . | . . . . Triggered . | . . . . Machines | -11 -10 -9 -9 ---------- Run | Scr Mat Mat Sto Machines Disabled . | . . . . Max in Single Turn . | . . . . Machines Sabotaged . | . . . . Garrisons Compromised . | . . . . Overloaded Fab Kills . | . . . . Hacking | -11 -10 -9 -9 --------- Run | Scr Mat Mat Sto Machines Accessed 5 | . 2 3 . Terminals 3 | . 2 1 . Fabricators . | . . . . Repair Stations 1 | . . 1 . Recycling Units 1 | . . 1 . Scanalyzers . | . . . . Garrison Access . | . . . . Total Hacks 13 | . 5 8 . Successful 7 | . 3 4 . Failed 6 | . 2 4 . Catastrophic . | . . . . Database Lockouts . | . . . . Manual . | . . . . Terminals 8 | . 5 3 . Fabricators . | . . . . Repair Stations 4 | . . 4 . Recycling Units 1 | . . 1 . Scanalyzers . | . . . . Garrison Access . | . . . . Terminal Hacks 5 | . 3 2 . Record 1 | . 1 . . Prototype ID Bank 1 | . . 1 . Emergency Access Points 1 | . 1 . . Alert Level 1 | . 1 . . Locate Traps 1 | . . 1 . Fabricator Hacks . | . . . . Repair Station Hacks 1 | . . 1 . Scan Component 1 | . . 1 . Recycling Unit Hacks 1 | . . 1 . Retrieve Matter 1 | . . 1 . Scanalyzer . | . . . . Garrison Access Hacks . | . . . . Unauthorized Hacks . | . . . . Terminals . | . . . . Fabricators . | . . . . Repair Stations . | . . . . Recycling Units . | . . . . Scanalyzers . | . . . . Garrison Access . | . . . . Data Cores Recovered . | . . . . Used . | . . . . Hacking Detections 4 | . 2 2 . Full Trace Events 1 | . . 1 . Feedback Events . | . . . . Feedback Blocked . | . . . . Robot Schematics Acquired . | . . . . Robots Built . | . . . . Authchips . | . . . . Time . | . . . . Total Robot Build Rating . | . . . . Part Schematics Acquired . | . . . . Parts Built . | . . . . Authchips . | . . . . Time . | . . . . Total Part Build Rating . | . . . . Parts Repaired . | . . . . Time . | . . . . Parts Recycled . | . . . . Recycled Matter . | . . . . Retrieved Matter 147 | . . 147 . Retrieved Components . | . . . . Parts Scanalyzed . | . . . . Part Schematics Acquired . | . . . . Parts Damaged . | . . . . Bothacking | -11 -10 -9 -9 ------------ Run | Scr Mat Mat Sto Used RIF Installer . | . . . . Robots Hacked . | . . . . Non-combat . | . . . . Combat . | . . . . Robot Hacks Applied . | . . . . Relay Couplers Released . | . . . . Fabnet Peak Effective % . | . . . . Robots Rewired . | . . . . Allies Hacked . | . . . . Hacks Repelled . | . . . . Allies | -11 -10 -9 -9 -------- Run | Scr Mat Mat Sto Total Allies . | . . . . Largest Group . | . . . . Highest-Rated Group . | . . . . Highest-Rated Ally . | . . . . Total Orders . | . . . . Ally Attacks . | . . . . Total Damage . | . . . . Kills . | . . . . Allies Corrupted . | . . . . Allies Melted . | . . . . Intel | -11 -10 -9 -9 ------- Run | Scr Mat Mat Sto Robot Analysis Total . | . . . . Derelict Logs Recovered . | . . . . Drone Launches . | . . . . Drone Recoveries . | . . . . Exploration | -11 -10 -9 -9 ------------- Run | Scr Mat Mat Sto Turns Passed 1241 | 112 339 672 118 Spaces Moved 895 | 93 244 472 86 Core 48 | 21 . . 27 Treads . | . . . . Legs 847 | 72 244 472 59 Wheels . | . . . . Hover . | . . . . Flight . | . . . . Fastest Speed 50 | 50 120 120 50 Average Speed 116 | 104 120 120 99 Slowest Speed 150 | 120 120 120 150 Overloaded Moves . | . . . . Propulsion Burnouts . | . . . . Robots Hopped . | . . . . Cave-ins Triggered . | . . . . Exploration Rate (%) 21 | 9 33 34 10 Regions Visited 3 Branch Regions 1 Pre-discovered Areas . | . . . . Known Exits Taken . | . . . . Unknown Exits Taken 3 | 1 1 1 . Scrap Searched . | . . . . Spaces Dug . | . . . . Terrain Destroyed 6 | . . 6 . Melee . | . . . . Projectile . | . . . . AOE 6 | . . 6 . Terrain Rammed . | . . . . Walls Destroyed . | . . . . Machines Disabled . | . . . . Actions | -11 -10 -9 -9 --------- Run | Scr Mat Mat Sto Total 1016 | 106 265 541 104 Wait 7 | . 1 5 1 Move 892 | 92 243 471 86 Hop . | . . . . Pick Up 27 | 8 4 15 . Fast Attach . | . . . . Attach 15 | 5 2 5 3 Detach . | . . . . Swap 8 | . . 7 1 Drop 13 | . . 13 . Fire 44 | 1 12 22 9 Melee . | . . . . Ram 4 | . . . 4 Kick 6 | . 3 3 . Crush . | . . . . Escape Stasis . | . . . . Rewire . | . . . . Trap . | . . . . Miscellaneous . | . . . . Route ------- -11/Scrapyard -10/Materials (discovered 2 exits: *Mat x2) -9/Materials -9/Storage History --------- Turn | Location | Event 2 | -11/Scrapyard | Met Revision 17 75 | -11/Scrapyard | Discovered new exit (range 8) 113 | -11/Scrapyard | Entered Materials 301 | -10/Materials | Build established: Mutant 314 | -10/Materials | Discovered new exit (range 13) 366 | -10/Materials | Discovered new exit (range 9) 452 | -10/Materials | Entered another Materials area 452 | -9/Materials | Evolved 2 slots: Propulsion x1, Utility x1 1098 | -9/Materials | Discovered new exit (range 11) 1124 | -9/Materials | Entered Storage 1226 | -9/Storage | Core integrity fell below 50% 1241 | -9/Storage | Core integrity fell below 20% 1242 | -9/Storage | Destroyed by L-31 Rogue with Katana Last Messages --------------- Imp. Ion Engine destroyed. Propulsion Shielding destroyed. Aluminum Leg destroyed. EM Pulse Cannon destroyed. Aluminum Leg destroyed. Imp. Ion Engine severed. Heat Sink destroyed. Autogun severed. The Imp. Targeting Computer is a processor, a type of utility that is destroyed if removed (these are marked with a colon in the parts list, as a reminder). Aluminum Leg destroyed. EM Pulse Cannon destroyed. Heat Sink destroyed. K-01 Serf collects debris. Slammed into K-01 Serf. K-01 Serf destroyed. Acquired 6 matter. Slammed into L-31 Rogue. L-31 Rogue knocked back. Map ----- +----------------------------------------------------+ | | | | | | | | | | | | | ????????????????????????????? | | ????????????????????????????? | | ????????????????????????????? | | ????????????????????????????? | | ????????????????????????????? | | ????????????????????????????? | | ????????????????????????????? | | ?#####??????????????????????? | | ?# #??????????????????????? | | ?# #??????????????????????? | | ?# #??????????????????????? | | ?# #??????????????????????? | | ?# #??????????????????????? | | ?# #??????????????????????? | | ?# #??????????????????????? | | ?# #??????????????????????? | | ?# #??????????????????????? | | ?# s #??????????????????????? | | ?# gl#???####???????????????? | | ?# g@#?? ??????????????? | | ?#% #? ???????????????? | | ?# # ????????????????? | | ?# # """ "????????????????? | | ?# + """ "????????????????? | | ?#Y # """ "????????????????? | | ?# # ????????????????? | | ?# #? ???????????????? | | ?# #?####/##??????????????? | | ?# #??????#???????????????? | | ?# #??????????????????????? | | ?# #??????????????????????? | | ?# #??????????????????????? | | ?# #??????????????????????? | | ?# #??????????????????????? | | ?# #??????????????????????? | | ?# #??????????????????????? | | ?# #??????????????????????? | | ?# #??????????????????????? | | ?# #??????????????????????? | | ?# #??????????????????????? | | ?# #??????????????????????? | | ?# #??????????????????????? | | ?# #??????????????????????? | | ?# #??????????????????????? | +----------------------------------------------------+ Best States ------------- Heat Dissipation 48 Energy Generation 12 Energy Capacity 265 Matter Stores 300 Matter Capacity 300 Sight Range 16 Terrain Scan Density 10 Propulsion Shielding 33 Evasion (%) 55 Targeting Accuracy 6 Item Schematics ----------------- None Robot Schematics ------------------ None Fabricated ------------ Nothing Alien Tech Used ----------------- None Achievements -------------- One Hack Too Far Uninvited Guest Challenges ------------ None Game ------ Seed MyomerCoolantInjector Manual? 0 Play Time 00:29:01 Cumulative 1.1 hours Start 2022.08.01 @ 17:34:18 End 2022.08.01 @ 18:03:17 Sessions 1 Manual Loads 0 Difficulty Rogue Special Mode None Game No. 2 Rogue 2 Adventurer 0 Explorer 0 Win Type - Total 0 Types 0/0/0/0/0/0/0/0/0 Lore% 0 Gallery% 1 Achievement% 1 Wizard Run 0 Options --------- ASCII 0 Keyboard 0 Movement Arrows Keybinds 0 Fullscreen 1 Font 18/SmallcapsGlow Map View 76x50 Tactical HUD 0 Map Filters NONE Filters NONE Steam 1 RUN: a0a5c4ba-3284-48cf-95f8-5c4b5760e8f3